bitfinex/quotes_BTCUSD_20241205
["timestamp","ask_amount","ask_price","bid_price","bid_amount"]
[1733439189359,0.10633044,96261.0,96207.0,0.10503154]
[1733439189588,0.10633044,96261.0,96209.0,0.10503154]
[1733439189979,0.10633044,96261.0,96210.0,0.023]
[1733439190138,0.10633044,96261.0,96211.0,0.10503154]
[1733439190315,0.01093964,96260.0,96213.0,0.023]
[1733439190514,0.00129881,96259.0,96215.0,0.023]
[1733439190730,0.00129874,96258.0,96217.0,0.023]
[1733439190930,0.00129873,96279.0,96218.0,0.10503154]
[1733439191149,0.10633024,96278.0,96219.0,0.023]
[1733439191366,0.10633024,96278.0,96231.0,0.10503154]
[1733439191367,0.0012987,96278.0,96231.0,0.10503154]
[1733439191670,0.00129848,96279.0,96233.0,0.023]
[1733439191868,0.00129848,96278.0,96234.0,0.10503154]
[1733439192129,0.0017358,96290.0,96235.0,0.023]
[1733439192307,0.00129847,96279.0,96237.0,0.023]
[1733439192536,0.00129847,96279.0,96238.0,0.10503154]
[1733439192737,0.00129847,96279.0,96240.0,0.023]
[1733439192885,0.00129847,96279.0,96232.0,0.02332315]
[1733439192886,0.10503154,96278.0,96227.0,0.023]
[1733439193096,0.00129873,96277.0,96229.0,0.023]
[1733439193280,0.00129866,96277.0,96233.0,0.023]
[1733439193483,0.00129845,96279.0,96235.0,0.023]
[1733439193698,0.0017356,96280.0,96237.0,0.023]
[1733439193926,0.0017356,96280.0,96239.0,0.023]
[1733439194134,0.0017356,96280.0,96240.0,0.10503154]
[1733439194531,0.0017356,96280.0,96241.0,0.023]
[1733439194701,0.077,96396.0,96254.0,0.10503154]
[1733439194876,0.077,96396.0,96237.0,0.023]
[1733439194877,0.0481,96392.0,96308.0,0.0818]
[1733439195092,0.00103745,96376.0,96309.0,0.10503154]
[1733439195333,0.00304236,96374.0,96310.0,0.02403809]
[1733439195541,0.00313889,96358.0,96312.0,0.023]
[1733439195753,0.00103745,96357.0,96314.0,0.023]
[1733439195876,0.00103745,96373.0,96315.0,0.13001651]
[1733439196082,0.00103745,96373.0,96316.0,0.023]
[1733439196281,0.00103745,96373.0,96318.0,0.023]
[1733439196485,0.00103745,96373.0,96319.0,0.10606946]
[1733439196955,0.00103745,96373.0,96321.0,0.10503154]
[1733439197160,0.00303491,96375.0,96322.0,0.0733736]
[1733439197409,0.00103745,96374.0,96339.0,0.12803154]
[1733439197565,0.00103745,96376.0,96339.0,0.15920652]
[1733439198177,0.00103745,96376.0,96340.0,0.05417498]
[1733439198375,0.10503154,96375.0,96342.0,0.023]
[1733439198563,0.01328274,96374.0,96343.0,0.13620652]
[1733439198844,0.10503154,96373.0,96343.0,0.13620652]
[1733439199045,0.00103745,96372.0,96343.0,0.13620652]
[1733439199503,0.10606899,96372.0,96343.0,0.03117498]
[1733439200420,0.0146485,96377.0,96344.0,0.10606932]
[1733439200591,0.0146485,96377.0,96347.0,0.023]
[1733439200815,0.0146485,96377.0,96349.0,0.023]
[1733439200963,0.0146485,96377.0,96351.0,0.023]
[1733439201164,0.0146485,96377.0,96352.0,0.10606912]
[1733439201826,0.0146485,96377.0,96353.0,0.023]
[1733439202031,0.0146485,96377.0,96354.0,0.11897599]
[1733439202212,0.0146485,96377.0,96355.0,0.023]
[1733439202419,0.0146485,96377.0,96356.0,0.10606904]
[1733439202629,0.0146485,96377.0,96357.0,0.023]
[1733439202859,0.0146485,96377.0,96361.0,0.10503154]
[1733439203033,0.0146485,96377.0,96364.0,0.10503154]
[1733439203282,0.00308053,96413.0,96365.0,0.02403754]
[1733439203501,0.00308053,96413.0,96366.0,0.10503154]
[1733439203670,0.00103745,96438.0,96374.0,0.023]
[1733439203894,0.00314409,96422.0,96376.0,0.023]
[1733439204081,0.00103745,96438.0,96377.0,0.12883577]
[1733439204275,0.00303372,96428.0,96378.0,0.12803154]
[1733439204510,0.00103745,96439.0,96383.0,0.023]
[1733439204622,0.00103745,96458.0,96385.0,0.023]
[1733439204833,0.00103745,96458.0,96384.0,0.15546866]
[1733439204834,0.00103745,96458.0,96387.0,0.023]
[1733439205038,0.00103745,96458.0,96390.0,0.023]
[1733439205341,0.00103745,96458.0,96399.0,0.10503154]
[1733439205555,0.00103745,96465.0,96402.0,0.10503154]
[1733439205754,0.00103745,96465.0,96403.0,0.02403694]
[1733439205960,0.00103745,96465.0,96404.0,0.10503154]
[1733439206158,0.00103745,96465.0,96407.0,0.0756]
[1733439206357,0.00103745,96465.0,96408.0,0.12906847]
[1733439206673,0.00313758,96464.0,96411.0,0.12803154]
[1733439206873,0.07796,96483.0,96408.0,0.02403693]
[1733439206874,0.00103745,96474.0,96426.0,0.10503154]
[1733439207021,0.00103745,96474.0,96428.0,0.023]
[1733439207233,6e-05,96483.0,96430.0,0.023]
[1733439207587,6e-05,96483.0,96433.0,0.10503154]
[1733439207785,6e-05,96483.0,96430.0,0.023]
[1733439207786,6e-05,96483.0,96444.0,0.023]
[1733439208054,6e-05,96483.0,96445.0,0.10606813]
[1733439208255,6e-05,96483.0,96446.0,0.023]
[1733439208504,6e-05,96483.0,96447.0,0.11897486]
[1733439208944,6e-05,96483.0,96448.0,0.023]
[1733439209165,6e-05,96483.0,96450.0,0.023]
[1733439209309,6e-05,96483.0,96455.0,0.10503154]
[1733439209522,6e-05,96483.0,96458.0,0.023]
[1733439209723,6e-05,96483.0,96459.0,0.11897475]
[1733439209892,6e-05,96483.0,96466.0,0.10503154]
[1733439210095,6e-05,96483.0,96469.0,0.12803154]
[1733439210351,6e-05,96483.0,96471.0,0.023]
[1733439210521,0.000222,96499.0,96479.0,0.10503154]
[1733439210750,0.000222,96499.0,96470.0,0.07735402]
[1733439210751,0.000222,96499.0,96482.0,0.023]
[1733439210950,0.03232198,96500.0,96498.0,0.10503154]
[1733439211159,0.0017374,96530.0,96499.0,0.13402165]
[1733439211363,0.0017374,96530.0,96518.0,0.023]
[1733439211592,0.0016974,96530.0,96520.0,0.023]
[1733439211797,0.0016974,96530.0,96522.0,0.023]
[1733439211998,0.0016974,96530.0,96523.0,0.10606725]
[1733439212173,0.0016974,96530.0,96524.0,0.023]
[1733439212369,0.0016974,96530.0,96529.0,0.12803154]
[1733439212598,0.0016974,96530.0,96529.0,0.15628311]
[1733439212738,0.0016974,96530.0,96529.0,0.14469548]
[1733439212938,0.0016974,96530.0,96529.0,0.17191142]
[1733439213143,0.00190465,96570.0,96530.0,0.023]
[1733439213378,0.00103745,96569.0,96532.0,0.023]
[1733439213533,0.10503154,96568.0,96533.0,0.10606717]
[1733439213747,0.00103745,96567.0,96510.0,0.02403563]
[1733439213971,0.11719001,96566.0,96512.0,0.023]
[1733439214194,0.00103745,96565.0,96513.0,0.10606733]
[1733439214396,0.10503154,96542.0,96483.0,0.0468]
[1733439214597,0.0488,96540.0,96462.0,0.0832]
[1733439214818,0.02403745,96539.0,96463.0,0.00103645]
[1733439215037,0.10503154,96514.0,96464.0,0.00842364]
[1733439215316,0.00103745,96513.0,96464.0,0.10606794]
[1733439215553,0.10503154,96512.0,96465.0,0.10503154]
[1733439215681,0.00103745,96511.0,96465.0,0.10606801]
[1733439215884,0.10503154,96510.0,96465.0,0.10606801]
[1733439216088,0.15,96479.0,96465.0,0.00103647]
[1733439216294,0.0488,96465.0,96410.0,0.00103695]
[1733439216658,0.10503154,96430.0,96378.0,0.00103716]
[1733439216893,0.00103745,96429.0,96377.0,0.0832]
[1733439217092,0.10503154,96415.0,96349.0,0.0832]
[1733439217218,0.11657214,96414.0,96350.0,0.00103745]
[1733439217428,0.10503154,96411.0,96350.0,0.00103745]
[1733439217636,0.10503154,96411.0,96351.0,0.10503154]
[1733439217823,0.00103745,96410.0,96352.0,0.00103758]
[1733439218030,0.10503154,96409.0,96353.0,0.10503154]
[1733439218235,0.01164435,96408.0,96354.0,0.00103758]
[1733439218608,0.10503154,96407.0,96355.0,0.10503154]
[1733439218811,0.00103745,96406.0,96356.0,0.00103755]
[1733439219106,0.00103745,96406.0,96349.0,0.0832]
[1733439219107,0.10503154,96405.0,96357.0,0.10606912]
[1733439219303,0.01270504,96404.0,96358.0,0.01060691]
[1733439219431,0.10503154,96403.0,96359.0,0.10606912]
[1733439219839,0.00103745,96402.0,96359.0,0.10606912]
[1733439220071,0.00103745,96418.0,96359.0,0.10606912]
[1733439220381,0.10606899,96417.0,96359.0,0.10606912]
[1733439220795,0.10503154,96411.0,96359.0,0.10606912]
[1733439220963,0.01164435,96410.0,96360.0,0.01060691]
[1733439221287,0.10503154,96409.0,96361.0,0.10606912]
[1733439221447,0.00103745,96408.0,96361.0,0.10606912]
[1733439221634,0.10503154,96407.0,96361.0,0.10606912]
[1733439221886,0.00103745,96406.0,96387.0,0.0048]
[1733439222064,0.11563844,96405.0,96387.0,0.0048]
[1733439222268,0.00103745,96404.0,96387.0,0.0048]
[1733439222435,0.10503154,96403.0,96387.0,0.0048]
[1733439222635,0.00103745,96402.0,96387.0,0.0048]
[1733439222879,0.00308843,96419.0,96387.0,0.0048]
[1733439222880,0.10503154,96401.0,96387.0,0.0048]
[1733439223057,0.00308843,96419.0,96387.0,0.0048]
[1733439223259,0.0488,96522.0,96443.0,0.15]
[1733439223471,0.0246672,96522.0,96458.0,0.15]
[1733439223641,0.0246672,96522.0,96442.0,0.0832]
[1733439223642,0.0246672,96522.0,96465.0,0.15]
[1733439223842,0.0246672,96522.0,96442.0,0.0832]
[1733439223843,0.0246672,96522.0,96468.0,0.15]
[1733439224069,0.0246672,96522.0,96469.0,0.13053469]
[1733439224281,0.0829,96529.0,96469.0,0.13053469]
[1733439224974,0.10503154,96521.0,96469.0,0.13053469]
[1733439225177,0.10807921,96502.0,96454.0,0.15]
[1733439225417,0.10503154,96489.0,96429.0,0.15]
[1733439225621,0.10503154,96473.0,96415.0,0.0832]
[1733439225823,0.10503154,96460.0,96389.0,0.0832]
[1733439225965,0.10503154,96460.0,96380.0,0.0468]
[1733439225966,0.01050315,96459.0,96380.0,0.0468]
[1733439226169,0.01050315,96459.0,96372.0,0.15]
[1733439226401,0.023,96458.0,96372.0,0.15]
[1733439226540,0.023,96458.0,96373.0,0.00103752]
[1733439226980,0.10503154,96425.0,96373.0,0.00103752]
[1733439227193,0.10503154,96425.0,96371.0,0.15]
[1733439227496,0.10503154,96425.0,96372.0,0.00103752]
[1733439227719,0.10503154,96425.0,96371.0,0.15]
[1733439227860,0.10503154,96424.0,96371.0,0.15103752]
[1733439228059,0.10503154,96424.0,96371.0,0.15]
[1733439228257,0.10503154,96424.0,96372.0,0.00103753]
[1733439228471,0.10503154,96424.0,96371.0,0.15]
[1733439228701,0.10503154,96424.0,96372.0,0.00103753]
[1733439230273,0.10503154,96424.0,96371.0,0.15]
[1733439230485,0.10503154,96424.0,96372.0,0.00103753]
[1733439230682,0.10503154,96424.0,96388.0,0.10503154]
[1733439230896,0.10503154,96424.0,96371.0,0.15]
[1733439231135,0.10503154,96424.0,96373.0,0.15]
[1733439231348,0.10503154,96424.0,96371.0,0.15]
[1733439231603,0.00312385,96415.0,96372.0,0.15103748]
[1733439231825,0.10503154,96414.0,96372.0,0.15103748]
[1733439232239,0.00312385,96415.0,96388.0,0.10503154]
[1733439232528,0.0488,96460.0,96388.0,0.10503154]
[1733439232672,0.10503154,96437.0,96389.0,0.02598315]
[1733439232898,0.10503154,96437.0,96388.0,0.10503154]
[1733439233280,0.10503154,96426.0,96373.0,0.15]
[1733439233620,0.10503154,96426.0,96382.0,0.15]
[1733439233759,0.00305969,96417.0,96388.0,0.10503154]
[1733439233964,0.10503154,96426.0,96392.0,0.15]
[1733439234163,0.10503154,96426.0,96393.0,0.10503154]
[1733439234371,0.0488,96460.0,96393.0,0.10503154]
[1733439234577,0.10503154,96440.0,96387.0,0.0048]
[1733439234895,0.10503154,96437.0,96387.0,0.10983154]
[1733439235499,0.00309348,96423.0,96387.0,0.10983154]
[1733439235857,0.10503154,96422.0,96387.0,0.10983154]
[1733439236008,0.10503154,96422.0,96388.0,0.25503154]
[1733439236499,0.0488,96460.0,96392.0,0.15]
[1733439236706,0.10503154,96445.0,96393.0,0.10503154]
[1733439237547,0.10503154,96445.0,96393.0,0.10606884]
[1733439238102,0.00308381,96424.0,96393.0,0.10606884]
[1733439238430,0.00308381,96424.0,96394.0,0.0010373]
[1733439238635,0.00308381,96424.0,96395.0,0.10503154]
[1733439239092,0.10503154,96445.0,96395.0,0.10503154]
[1733439239233,0.01050315,96444.0,96395.0,0.10503154]
[1733439239438,0.10503154,96443.0,96387.0,0.0048]
[1733439239647,0.01050315,96444.0,96387.0,0.0048]
[1733439239648,0.00306336,96427.0,96388.0,0.10503154]
[1733439239909,0.10503154,96426.0,96387.0,0.0048]
[1733439240154,0.10503154,96415.0,96387.0,0.0048]
[1733439240369,0.01050315,96414.0,96387.0,0.0048]
[1733439240535,0.10503154,96393.0,96387.0,0.0048]
[1733439240766,0.10503154,96393.0,96390.0,0.0017258]
[1733439240919,0.10503154,96393.0,96387.0,0.00172581]
[1733439241474,0.10503154,96388.0,96350.0,0.0017278]
[1733439241619,0.10503154,96354.0,96350.0,0.0017278]
[1733439242271,0.10503154,96351.0,96350.0,0.0017278]
[1733439244761,0.15,96319.0,96236.0,0.0222118]
[1733439244977,0.15,96319.0,96279.0,0.10503154]
[1733439245145,0.15,96319.0,96280.0,0.02403835]
[1733439245355,0.015,96318.0,96282.0,0.023]
[1733439245563,0.15,96319.0,96283.0,0.10606989]
[1733439245913,0.0815,96373.0,96283.0,0.10606989]
[1733439245914,0.15,96311.0,96283.0,0.10503154]
[1733439246316,0.15,96304.0,96283.0,0.10503154]
[1733439246530,0.15,96304.0,96250.0,0.0008645]
[1733439246762,0.15,96304.0,96257.0,0.10503154]
[1733439246956,0.15,96297.0,96258.0,0.0116456]
[1733439247837,0.15,96287.0,96261.0,0.10503154]
[1733439248042,0.15,96284.0,96261.0,0.10503154]
[1733439248413,0.15,96282.0,96261.0,0.10503154]
[1733439249235,0.15,96281.0,96250.0,0.00190326]
[1733439249461,0.15,96281.0,96251.0,0.10503154]
[1733439249680,0.15,96268.0,96250.0,0.0008645]
[1733439249882,0.165,96267.0,96250.0,0.0008645]
[1733439250112,0.15,96259.0,96250.0,0.0008645]
[1733439250950,0.15,96253.0,96250.0,0.0008645]
[1733439251163,0.15,96251.0,96250.0,0.0008645]
[1733439251363,0.25503154,96251.0,96250.0,0.0003645]
[1733439251612,0.28053469,96251.0,96250.0,0.0003645]
[1733439251820,0.25503154,96251.0,96250.0,0.0003645]
[1733439251953,0.25503154,96251.0,96160.0,0.0008652]
[1733439251954,0.15,96233.0,96176.0,0.0785]
[1733439252167,0.15,96223.0,96176.0,0.0785]
[1733439252374,0.25503154,96223.0,96176.0,0.0785]
[1733439252573,0.28053469,96223.0,96176.0,0.0785]
[1733439252802,0.28053469,96223.0,96160.0,0.0008652]
[1733439253213,0.43053469,96223.0,96160.0,0.0008652]
[1733439253453,0.15,96201.0,96160.0,0.0008652]
[1733439253596,0.25503154,96201.0,96160.0,0.0008652]
[1733439254533,0.15,96162.0,96160.0,0.0008652]
[1733439254859,0.046,96208.0,96160.0,0.0008652]
[1733439254860,0.25503154,96161.0,96160.0,0.0008652]
[1733439255036,0.15,96161.0,96160.0,0.0008652]
[1733439255619,0.15,96161.0,96060.0,0.0113076]
[1733439255620,0.15,96101.0,96060.0,0.0113076]
[1733439255828,0.15,96092.0,96041.0,0.00104076]
[1733439256052,0.15,96058.0,95986.0,0.00104076]
[1733439256255,0.15,96056.0,96029.0,0.004159]
[1733439256481,0.17550315,96056.0,96029.0,0.004159]
[1733439256836,0.28053469,96056.0,96029.0,0.004159]
[1733439257117,0.25503154,96056.0,95964.0,0.00104143]
[1733439257260,0.25503154,96056.0,95964.0,0.00104152]
[1733439257632,0.15,96032.0,95964.0,0.00104152]
[1733439257779,0.15,96040.0,95979.0,0.00104169]
[1733439257989,0.10503154,96039.0,96009.0,0.00416]
[1733439258196,0.15,96048.0,96009.0,0.00416]
[1733439258403,0.15,96061.0,96031.0,0.10503154]
[1733439258737,0.15,96070.0,96032.0,0.01163107]
[1733439258901,0.00317113,96079.0,96033.0,0.10503154]
[1733439259131,0.048,96126.0,96032.0,0.01163107]
[1733439259132,0.15,96087.0,96044.0,0.10503154]
[1733439259275,0.15,96089.0,96047.0,0.10503154]
[1733439259479,0.15,96090.0,96048.0,0.1290724]
[1733439259694,0.0520821,96229.0,96048.0,0.1290724]
[1733439259695,0.15,96110.0,96068.0,0.10503154]
[1733439259896,0.048,96153.0,96049.0,0.01290724]
[1733439259897,0.15,96129.0,96077.0,0.023]
[1733439260107,0.15,96174.0,96086.0,0.10503154]
[1733439260345,0.048,96238.0,96128.0,0.10503154]
[1733439260346,0.15,96166.0,96128.0,0.10503154]
[1733439260567,0.15,96174.0,96129.0,0.00104004]
[1733439260762,0.15,96195.0,96155.0,0.023]
[1733439260956,0.191541,96232.0,96147.0,0.0759]
[1733439260957,0.15,96198.0,96157.0,0.023]
[1733439261173,0.15,96198.0,96158.0,0.10607122]
[1733439261417,0.15,96206.0,96164.0,0.10503154]
[1733439261628,0.15,96216.0,96174.0,0.10503154]
[1733439261860,0.14995,96244.0,96195.0,0.023]
[1733439262032,0.14995,96252.0,96205.0,0.12803154]
[1733439262168,0.14995,96251.0,96210.0,0.10503154]
[1733439262368,0.14995,96254.0,96211.0,0.02403914]
[1733439262591,0.14995,96254.0,96212.0,0.09969046]
[1733439262797,0.0017362,96260.0,96218.0,0.023]
[1733439263053,0.0017362,96260.0,96220.0,0.023]
[1733439263255,0.0017362,96260.0,96223.0,0.023]
[1733439263488,0.14995,96253.0,96224.0,0.10503154]
[1733439263850,0.14995,96234.0,96199.0,0.00103909]
[1733439264036,0.14995,96248.0,96205.0,0.10503154]
[1733439264240,0.14995,96241.0,96206.0,0.01290708]
[1733439264440,0.14995,96234.0,96207.0,0.10503154]
[1733439264769,0.14995,96236.0,96208.0,0.10503154]
[1733439264949,0.14995,96244.0,96209.0,0.10503154]
[1733439265156,0.14995,96232.0,96209.0,0.10503154]
[1733439265532,0.14995,96229.0,96209.0,0.10503154]
[1733439265760,0.14995,96215.0,96176.0,0.00103928]
[1733439265992,0.00318337,96251.0,96135.0,0.0461]
[1733439265993,0.14995,96195.0,96149.0,0.00103958]
[1733439266190,0.10503154,96195.0,96150.0,0.10503154]
[1733439266398,0.14895,96178.0,96150.0,0.10503154]
[1733439266571,0.14895,96182.0,96150.0,0.10503154]
[1733439266726,0.14895,96192.0,96151.0,0.0010399]
[1733439266924,0.14895,96197.0,96152.0,0.10503154]
[1733439267132,0.14895,96197.0,96153.0,0.00103975]
[1733439267344,0.14895,96290.0,96234.0,0.0766]
[1733439267556,0.14895,96275.0,96235.0,0.10607031]
[1733439268364,0.14895,96261.0,96235.0,0.10503154]
[1733439269153,0.14895,96241.0,96201.0,0.023]
[1733439269373,0.14895,96241.0,96203.0,0.023]
[1733439269580,0.14895,96240.0,96204.0,0.10607076]
[1733439269969,0.14895,96223.0,96168.0,0.1227]
[1733439270174,0.14895,96218.0,96181.0,0.10503154]
[1733439270377,0.14895,96210.0,96181.0,0.10503154]
[1733439270709,0.14895,96207.0,96168.0,0.0766]
[1733439270891,0.14895,96203.0,96169.0,0.10503154]
[1733439271101,0.14895,96198.0,96169.0,0.10503154]
[1733439271287,0.14895,96199.0,96169.0,0.10503154]
[1733439271485,0.14895,96199.0,96170.0,0.00103968]
[1733439271761,0.14895,96199.0,96171.0,0.10503154]
[1733439271904,0.14895,96199.0,96172.0,0.00103967]
[1733439272258,0.14895,96202.0,96173.0,0.10607121]
[1733439272496,0.14895,96198.0,96173.0,0.10607121]
[1733439275654,0.14895,96206.0,96173.0,0.10607121]
[1733439275818,0.163845,96206.0,96173.0,0.10607121]
[1733439276027,0.14895,96206.0,96173.0,0.10607121]
[1733439276460,0.14895,96205.0,96174.0,0.00103959]
[1733439276652,0.14895,96206.0,96175.0,0.10503154]
[1733439276908,0.14895,96205.0,96175.0,0.10503154]
[1733439277216,0.14895,96198.0,96151.0,0.0010396]
[1733439277362,0.02539815,96197.0,96155.0,0.10503154]
[1733439277551,0.10503154,96204.0,96156.0,0.02403968]
[1733439277751,0.00311727,96213.0,96156.0,0.02403968]
[1733439277752,0.14895,96207.0,96164.0,0.023]
[1733439277957,0.001733,96200.0,96166.0,0.023]
[1733439278154,0.001733,96200.0,96168.0,0.023]
[1733439278380,0.001733,96200.0,96170.0,0.023]
[1733439278588,0.001733,96200.0,96171.0,0.12127822]
[1733439278998,0.001733,96200.0,96171.0,0.10607111]
[1733439282041,0.001733,96200.0,96172.0,0.023]
[1733439282252,0.001733,96200.0,96174.0,0.023]
[1733439282427,0.001733,96200.0,96175.0,0.10607107]
[1733439282631,0.001733,96200.0,96176.0,0.023]
[1733439282833,0.001733,96200.0,96178.0,0.023]
[1733439283043,0.001733,96200.0,96180.0,0.023]
[1733439283252,0.001733,96200.0,96181.0,0.106071]
[1733439283466,0.001733,96200.0,96181.0,0.104071]
[1733439283805,0.001733,96200.0,96181.0,0.099071]
[1733439284026,0.001733,96200.0,96181.0,0.09803154]
[1733439285052,0.001733,96200.0,96150.0,0.00103956]
[1733439285308,0.14895,96198.0,96155.0,0.10503154]
[1733439285530,0.14895,96198.0,96156.0,0.01164678]
[1733439285698,0.14895,96198.0,96157.0,0.10503154]
[1733439285914,0.14895,96198.0,96158.0,0.00103967]
[1733439286099,0.001733,96200.0,96175.0,0.10503154]
[1733439286277,0.001733,96200.0,96176.0,0.00103946]
[1733439286564,0.001733,96200.0,96177.0,0.1166781]
[1733439286722,0.001733,96200.0,96178.0,0.023]
[1733439286925,0.001733,96200.0,96180.0,0.023]
[1733439287125,0.001733,96200.0,96181.0,0.106071]
[1733439287844,0.001733,96200.0,96181.0,0.10503154]
[1733439289818,0.001733,96200.0,96181.0,0.11553469]
[1733439290241,0.001733,96200.0,96181.0,0.10503154]
[1733439290681,0.001733,96200.0,96151.0,0.023]
[1733439290808,0.001733,96200.0,96157.0,0.023]
[1733439291200,0.001733,96200.0,96159.0,0.023]
[1733439291411,0.001733,96200.0,96161.0,0.10503154]
[1733439291580,0.001733,96200.0,96162.0,0.03464672]
[1733439291780,0.001733,96200.0,96164.0,0.023]
[1733439292022,0.001733,96200.0,96165.0,0.10607114]
[1733439292212,0.001733,96200.0,96166.0,0.023]
[1733439292422,0.001733,96200.0,96167.0,0.10607114]
[1733439294869,0.137683,96205.0,96167.0,0.10607114]
[1733439295069,0.1394136,96210.0,96167.0,0.10607114]
[1733439295267,0.0017306,96210.0,96168.0,0.03909963]
[1733439295555,0.0017306,96210.0,96169.0,0.10607111]
[1733439295760,0.137683,96206.0,96169.0,0.10607111]
[1733439296257,0.0017306,96210.0,96174.0,0.10503154]
[1733439296481,0.137683,96204.0,96174.0,0.10503154]
[1733439296646,0.137683,96207.0,96175.0,0.00103961]
[1733439297014,0.0017306,96210.0,96177.0,0.023]
[1733439297239,0.0017306,96210.0,96179.0,0.023]
[1733439297478,0.0017306,96210.0,96182.0,0.023]
[1733439297702,0.0017306,96210.0,96184.0,0.12803154]
[1733439297897,0.0017306,96210.0,96185.0,0.00103934]
[1733439298114,0.0017306,96210.0,96187.0,0.023]
[1733439298258,0.0017306,96210.0,96192.0,0.023]
[1733439298459,0.0017306,96210.0,96194.0,0.023]
[1733439298641,0.0017306,96210.0,96195.0,0.12127789]
[1733439298845,0.0017306,96210.0,96196.0,0.023]
[1733439299048,0.0017306,96210.0,96197.0,0.10607081]
[1733439299382,0.0017306,96210.0,96198.0,0.023]
[1733439299596,0.137683,96267.0,96210.0,0.023]
[1733439299784,0.137683,96277.0,96232.0,0.10503154]
[1733439299991,0.137683,96272.0,96233.0,0.02403882]
[1733439300185,0.137683,96272.0,96234.0,0.10503154]
[1733439300409,0.137683,96277.0,96235.0,0.00103888]
[1733439300716,0.137683,96278.0,96236.0,0.10503154]
[1733439300857,0.137683,96287.0,96241.0,0.10503154]
[1733439301061,0.137683,96283.0,96242.0,0.02403877]
[1733439301283,0.137683,96283.0,96243.0,0.10503154]
[1733439301489,0.137683,96282.0,96244.0,0.00103877]
[1733439301702,0.137683,96282.0,96245.0,0.10503154]
[1733439301881,0.137683,96282.0,96246.0,0.01290703]
[1733439302088,0.137683,96273.0,96246.0,0.11793857]
[1733439302281,0.137683,96273.0,96230.0,0.00103877]
[1733439302282,0.137683,96272.0,96230.0,0.02403877]
[1733439302480,0.137683,96273.0,96231.0,0.10503154]
[1733439302719,0.137683,96273.0,96232.0,0.02403887]
[1733439303053,0.137683,96273.0,96233.0,0.10503154]
[1733439303345,0.137683,96273.0,96234.0,0.00103887]
[1733439303545,0.137683,96273.0,96235.0,0.10503154]
[1733439303699,0.137683,96273.0,96236.0,0.00103887]
[1733439303896,0.137683,96273.0,96237.0,0.10503154]
[1733439304097,0.137683,96273.0,96238.0,0.00103887]
[1733439304439,0.137683,96277.0,96239.0,0.10503154]
[1733439304674,0.137683,96276.0,96240.0,0.00103887]
[1733439304884,0.00317032,96287.0,96240.0,0.00103887]
[1733439304885,0.137683,96279.0,96241.0,0.10503154]
[1733439305098,0.137683,96273.0,96241.0,0.10503154]
[1733439305928,0.137683,96272.0,96241.0,0.10503154]
[1733439306118,0.137683,96266.0,96213.0,0.0010389]
[1733439306331,0.137683,96266.0,96220.0,0.10503154]
[1733439306539,0.137683,96266.0,96221.0,0.02403894]
[1733439306728,0.137683,96266.0,96222.0,0.10503154]
[1733439306986,0.137683,96266.0,96223.0,0.02403894]
[1733439307202,0.137683,96249.0,96222.0,0.10503154]
[1733439307434,0.15317032,96287.0,95094.0,28.4760534]
[1733439307435,0.137683,96241.0,96203.0,0.00103913]
[1733439307557,0.137683,96241.0,96204.0,0.10503154]
[1733439307753,0.137683,96238.0,96204.0,0.10503154]
[1733439308102,0.137683,96227.0,96186.0,0.03317128]
[1733439308307,0.132683,96223.0,96187.0,0.1060709]
[1733439308783,0.02427145,96237.0,96187.0,0.1060709]
[1733439308784,0.132683,96219.0,96187.0,0.1060709]
[1733439308984,0.132683,96217.0,96187.0,0.10503154]
[1733439309366,0.23771454,96216.0,96188.0,0.00103949]
[1733439309570,0.132683,96213.0,96167.0,0.10503154]
[1733439309733,0.132683,96213.0,96168.0,0.00103952]
[1733439309930,0.132683,96210.0,96169.0,0.10503154]
[1733439310132,0.132683,96210.0,96170.0,0.00103952]
[1733439310503,0.10503154,96213.0,96170.0,0.00103952]
[1733439310504,0.132683,96209.0,96171.0,0.10503154]
[1733439310630,0.132683,96209.0,96172.0,0.00103957]
[1733439310834,0.132683,96209.0,96173.0,0.10503154]
[1733439311052,0.132683,96209.0,96174.0,0.00103957]
[1733439311256,0.10503154,96213.0,96175.0,0.10503154]
[1733439311257,0.132683,96208.0,96175.0,0.10503154]
[1733439311462,0.132683,96208.0,96176.0,0.00103958]
[1733439311630,0.132683,96208.0,96177.0,0.11563865]
[1733439311979,0.132683,96208.0,96178.0,0.00103958]
[1733439312197,0.132683,96208.0,96179.0,0.10503154]
[1733439312361,0.132683,96211.0,96180.0,0.00103958]
[1733439312528,0.23771454,96211.0,96181.0,0.10503154]
[1733439312723,0.23271454,96211.0,96182.0,0.00103958]
[1733439312928,0.23271454,96211.0,96183.0,0.01060711]
[1733439313376,0.132683,96212.0,96184.0,0.10607112]
[1733439313685,0.132683,96211.0,96184.0,0.10607112]
[1733439313828,0.132683,96208.0,96170.0,0.0008651]
[1733439314028,0.132683,96208.0,96171.0,0.10503154]
[1733439314281,0.132683,96208.0,96172.0,0.00103958]
[1733439314477,0.132683,96212.0,96173.0,0.11614046]
[1733439314704,0.132683,96216.0,96174.0,0.00103954]
[1733439314913,0.10503154,96215.0,96175.0,0.10607108]
[1733439315083,0.132683,96216.0,96175.0,0.10607108]
[1733439315279,0.132683,96217.0,96176.0,0.03521981]
[1733439315480,0.132683,96216.0,96177.0,0.10607103]
[1733439316224,0.132683,96212.0,96177.0,0.10607103]
[1733439316372,0.132683,96210.0,96177.0,0.10607103]
[1733439316588,0.132683,96208.0,96177.0,0.10607103]
[1733439317860,0.10503154,96215.0,96177.0,0.10607103]
[1733439317861,0.132683,96210.0,96177.0,0.10607103]
[1733439318089,0.23771454,96215.0,96178.0,0.0110224]
[1733439318233,0.132683,96217.0,96179.0,0.10607111]
[1733439319244,0.132683,96211.0,96179.0,0.10607111]
[1733439319442,0.132683,96209.0,96179.0,0.10607111]
[1733439319647,0.132683,96221.0,96179.0,0.10607111]
[1733439319867,0.10503154,96220.0,96180.0,0.01060711]
[1733439320075,0.10503154,96220.0,96181.0,0.10607102]
[1733439320445,0.132683,96225.0,96182.0,0.023]
[1733439320645,0.132683,96225.0,96183.0,0.10607096]
[1733439320646,0.132683,96222.0,96183.0,0.10607096]